[Event "2nd German Women BLS 2024-25"]
[Site "Germany"]
[Date "2025.01.25"]
[Round "3.10"]
[White "Mueller, Manon"]
[Black "Prinzen, Siri Marleen"]
[Result "0-1"]
[Annotator "NA RC"]
[ECO "D61"]
[WhiteElo "1881"]
[BlackElo "1819"]
[PlyCount "80"]
[EventDate "2025.01.22"]
[EventType "team-tourn"]
[EventCountry "GER"]
[SourceTitle "playchess.com"]
[Source "ChessBase"]
[SourceQuality "1"]
[WhiteTeam "1980 Gernsheim"]
[BlackTeam "Bavaria Regensburg 1881"]
[TimeControl "40/5400+30:1800+30"]

1. d4 {[%emt 0:00:04]} d5 {[%emt 0:00:04]} 2. c4 {[%emt 0:00:13]} e6 {[%emt 0:00:05]} 3. Nf3 {[%emt 0:00:10]} Nf6 {[%emt 0:00:51]} 4. Bg5 {[%emt 0:00:39]} Be7 {[%emt 0:00:31]} 5. e3 {[%emt 0:00:54]} O-O {[%emt 0:01:54]} 6. Nc3 {[%emt 0:00:40]} Nbd7 {[%emt 0:03:38]} 7. Qc2 {[%emt 0:01:57]} b6 {[%emt 0:06:56]} 8. Bxf6 {[%emt 0:06:20]} Nxf6 {[%emt 0:02:25]} 9. cxd5 {[%emt 0:00:13]} Nxd5 {[%emt 0:06:35]} 10. a3 {[%emt 0:45:45]} Bb7 {[%emt 0:00:30]} 11. Be2 {[%emt 0:00:30]} Nxc3 {[%emt 0:00:30]} 12. Qxc3 {[%emt 0:00:30]} Bf6 {[%emt 0:00:30]} 13. b4 {[%emt 0:00:30]} Rc8 {[%emt 0:00:30]} 14. Rc1 {[%emt 0:00:30]} c5 {[%emt 0:00:30]} 15. bxc5 {[%emt 0:00:30]} bxc5 {[%emt 0:00:30]} 16. Qb2 Qa5+ {[%emt 0:26:34]} 17. Qc3 {[%emt 0:02:38]} Qxc3+ {[%emt 0:01:29]} 18. Rxc3 {[%emt 0:00:02]} cxd4 {[%emt 0:04:38]} 19. Rxc8 {[%emt 0:04:59]} Rxc8 {[%emt 0:00:10]} 20. Kd2 {[%emt 0:05:56]} dxe3+ {[%emt 0:01:42]} 21. fxe3 {[%emt 0:00:18]} Bc3+ {[%emt 0:02:09]} 22. Kc2 {[%emt 0:02:10]} Be4+ {[%emt 0:02:45]} 23. Kb3 {[%emt 0:01:16]} Bf6 {[%emt 0:03:08]} 24. Bc4 {[%emt 0:04:28]} Rb8+ {[%emt 0:03:11]} 25. Ka4 {[%emt 0:01:59]} Bd8 {[%emt 0:09:57]} 26. Nd4 {[%emt 0:08:09]} e5 {[%emt 0:01:11]} 27. Nb5 {[%emt 0:01:47]} a6 {[%emt 0:03:17]} 28. Bxf7+ {[%emt 0:02:37]} Kf8 {[%emt 0:00:26]} 29. Be6 {[%emt 0:02:23]} axb5+ {[%emt 0:04:07]} 30. Kb3 {[%emt 0:00:55]} Ke7 {[%emt 0:01:18]} 31. Bh3 {[%emt 0:00:18]} Ba5 {[%emt 0:01:41]} 32. Rd1 {[%emt 0:00:23]} Rd8 {[%emt 0:00:48]} 33. Rxd8 {[%emt 0:02:41]} Kxd8 {[%emt 0:00:01]} 34. g3 {[%emt 0:00:59]} Kc7 {[%emt 0:01:08]} 35. Bf1 {[%emt 0:01:06]} Kb6 {[%emt 0:00:23]} 36. Be2 {[%emt 0:00:30]} Kc5 {[%emt 0:00:39]} 37. h4 {[%emt 0:00:47]} Be1 {[%emt 0:01:05]} 38. g4 {[%emt 0:01:14]} Bxh4 {[%emt 0:00:11]} 39. Bd1 {[%emt 0:00:39]} Bf2 {[%emt 0:00:24]} 40. Be2 {[%emt 0:00:47]} Bxe3 {[%emt 0:00:10]} 0-1

[Event "2nd German Women BLS 2024-25"]
[Site "Germany"]
[Date "2025.01.25"]
[Round "3.11"]
[White "Oberhofer, Marie"]
[Black "Tampe, Friederike"]
[Result "1/2-1/2"]
[Annotator "NA RC"]
[ECO "C90"]
[WhiteElo "1882"]
[BlackElo "1767"]
[PlyCount "82"]
[EventDate "2025.01.22"]
[EventType "team-tourn"]
[EventCountry "GER"]
[SourceTitle "playchess.com"]
[Source "ChessBase"]
[SourceQuality "1"]
[WhiteTeam "Bavaria Regensburg 1881"]
[BlackTeam "1980 Gernsheim"]
[TimeControl "40/5400+30:1800+30"]

1. e4 {[%emt 0:00:05]} e5 {[%emt 0:00:05]} 2. Nf3 {[%emt 0:00:05]} Nc6 {[%emt 0:00:03]} 3. Bb5 {[%emt 0:00:05]} a6 {[%emt 0:00:15]} 4. Ba4 {[%emt 0:00:05]} Be7 {[%emt 0:00:18]} 5. O-O {[%emt 0:00:24]} Nf6 {[%emt 0:00:28]} 6. Re1 {[%emt 0:00:31]} b5 {[%emt 0:00:05]} 7. Bb3 {[%emt 0:00:05]} d6 {[%emt 0:00:09]} 8. c3 {[%emt 0:00:54]} O-O {[%emt 0:00:24]} 9. d3 {[%emt 0:00:10]} h6 {[%emt 0:01:17]} 10. Nbd2 {[%emt 0:00:35]} Bb7 {[%emt 0:02:10]} 11. Nf1 {[%emt 0:00:19]} Re8 {[%emt 0:00:18]} 12. Ng3 {[%emt 0:00:55]} Na5 {[%emt 0:00:11]} 13. Bc2 {[%emt 0:00:45]} c5 {[%emt 0:00:17]} 14. Nf5 {[%emt 0:04:39]} Bf8 {[%emt 0:00:53]} 15. b3 {[%emt 0:16:53]} Rc8 {[%emt 0:39:49]} 16. c4 {[%emt 0:00:30]} b4 {[%emt 0:00:30]} 17. h3 {[%emt 0:00:30]} Nc6 {[%emt 0:00:30]} 18. Be3 {[%emt 0:00:30]} Ne7 {[%emt 0:00:30]} 19. Nxe7+ {[%emt 0:00:30]} Qxe7 {[%emt 0:00:30]} 20. Nh2 {[%emt 0:00:30]} Qd7 {[%emt 0:00:30]} 21. Qd2 {[%emt 0:00:30]} Kh7 {[%emt 0:00:30]} 22. Bd1 {[%emt 0:00:30]} Ra8 23. Ng4 {[%emt 0:31:54]} Qe7 {[%emt 0:01:00]} 24. Nxf6+ {[%emt 0:01:38]} Qxf6 {[%emt 0:00:02]} 25. Rf1 {[%emt 0:00:19]} a5 {[%emt 0:01:47]} 26. Bg4 {[%emt 0:01:11]} Bc6 {[%emt 0:03:37]} 27. f4 {[%emt 0:06:51]} Qe7 {[%emt 0:00:29]} 28. f5 {[%emt 0:01:01]} Qb7 {[%emt 0:01:21]} 29. f6 {[%emt 0:01:19]} g6 {[%emt 0:00:23]} 30. h4 {[%emt 0:01:07]} Bd7 {[%emt 0:03:37]} 31. Be2 {[%emt 0:04:20]} Qc8 {[%emt 0:05:01]} 32. h5 {[%emt 0:01:34]} g5 {[%emt 0:00:21]} 33. a4 {[%emt 0:05:26]} Bg4 {[%emt 0:04:19]} 34. Qd1 {[%emt 0:03:34]} Bxe2 {[%emt 0:00:39]} 35. Qxe2 {[%emt 0:00:07]} Re6 {[%emt 0:00:21]} 36. Rf5 {[%emt 0:01:15]} Qd8 {[%emt 0:00:58]} 37. Raf1 {[%emt 0:00:23]} Ra7 {[%emt 0:00:43]} 38. Qg4 {[%emt 0:01:50]} Rb7 {[%emt 0:01:25]} 39. R5f3 {[%emt 0:06:01]} Re8 {[%emt 0:06:47]} 40. Rg3 {[%emt 0:08:39]} Qd7 {[%emt 0:01:36]} 41. Rf5 {[%emt 0:30:59]} Qc8 {[%emt 0:35:38]} 1/2-1/2

[Event "2nd German Women BLS 2024-25"]
[Site "Germany"]
[Date "2025.01.25"]
[Round "3.12"]
[White "Schardt, Madeleine"]
[Black "Wetzler, Sophia"]
[Result "1/2-1/2"]
[Annotator "NA RC"]
[ECO "D02"]
[WhiteElo "1754"]
[BlackElo "1823"]
[PlyCount "54"]
[EventDate "2025.01.22"]
[EventType "team-tourn"]
[EventCountry "GER"]
[SourceTitle "playchess.com"]
[Source "ChessBase"]
[SourceQuality "1"]
[WhiteTeam "1980 Gernsheim"]
[BlackTeam "Bavaria Regensburg 1881"]
[TimeControl "40/5400+30:1800+30"]

1. d4 {[%emt 0:00:03]} d5 {[%emt 0:00:12]} 2. Nf3 {[%emt 0:00:05]} Nf6 {[%emt 0:00:28]} 3. c3 {[%emt 0:00:07]} e6 {[%emt 0:01:14]} 4. Bf4 {[%emt 0:00:14]} Be7 {[%emt 0:03:17]} 5. Nbd2 {[%emt 0:01:15]} c5 {[%emt 0:06:48]} 6. e3 O-O {[%emt 0:00:54]} 7. Bd3 {[%emt 0:01:58]} c4 {[%emt 0:06:45]} 8. Bc2 {[%emt 0:03:22]} Nc6 {[%emt 0:05:47]} 9. a4 {[%emt 0:00:30]} Qa5 {[%emt 0:00:30]} 10. O-O {[%emt 0:00:30]} Bd7 {[%emt 0:00:30]} 11. Ne5 {[%emt 0:00:30]} Qd8 {[%emt 0:00:30]} 12. h3 Be8 {[%emt 0:37:08]} 13. Ndf3 {[%emt 0:42:22]} Nxe5 {[%emt 0:06:30]} 14. dxe5 {[%emt 0:02:28]} Nd7 {[%emt 0:04:32]} 15. Nd4 {[%emt 0:07:52]} Nc5 {[%emt 0:03:41]} 16. Qg4 {[%emt 0:07:46]} Kh8 {[%emt 0:04:40]} 17. Bg3 {[%emt 0:04:37]} Rg8 {[%emt 0:06:52]} 18. a5 {[%emt 0:05:01]} f5 {[%emt 0:02:49]} 19. exf6 {[%emt 0:00:32]} gxf6 {[%emt 0:00:10]} 20. Qh4 {[%emt 0:09:24]} Bg6 {[%emt 0:00:40]} 21. Bxg6 {[%emt 0:01:48]} Rxg6 {[%emt 0:00:11]} 22. Rfd1 {[%emt 0:02:29]} Qd7 {[%emt 0:02:08]} 23. Ne2 {[%emt 0:01:39]} Nd3 {[%emt 0:03:24]} 24. Nf4 {[%emt 0:00:55]} Nxf4 {[%emt 0:00:12]} 25. Qxf4 {[%emt 0:00:13]} e5 {[%emt 0:00:50]} 26. Qxc4 {[%emt 0:00:24]} Rd8 {[%emt 0:01:24]} 27. Qd3 {[%emt 0:01:23]} Qc6 {[%emt 0:00:36]} 1/2-1/2